bitfinex/quotes_BTCUSD_20250814
["timestamp","ask_amount","ask_price","bid_price","bid_amount"]
[1755204461114,0.34079885,117890.0,117880.0,0.91185489]
[1755204462791,0.34079885,117890.0,117880.0,0.51221406]
[1755204462998,0.10359885,117890.0,117880.0,0.51221406]
[1755204463240,0.08781405,117890.0,117880.0,0.51221406]
[1755204463420,0.22489405,117890.0,117880.0,0.51221406]
[1755204463665,0.24067885,117890.0,117880.0,0.51121406]
[1755204463871,0.23767885,117890.0,117880.0,0.51121406]
[1755204464088,0.10159885,117890.0,117880.0,0.51321406]
[1755204464296,0.22289405,117890.0,117880.0,0.9989217]
[1755204464510,0.14008,117890.0,117880.0,0.9989217]
[1755204464718,0.13908,117890.0,117880.0,1.0223947]
[1755204465155,0.13708,117890.0,117880.0,1.0223947]
[1755204465580,0.13908,117890.0,117880.0,1.0223947]
[1755204465845,0.08347488,117910.0,117900.0,0.50963528]
[1755204466045,0.28939591,117910.0,117900.0,0.51058528]
[1755204466275,0.30520893,117910.0,117900.0,0.51058528]
[1755204466880,0.16828893,117910.0,117900.0,0.51058528]
[1755204467129,0.28935591,117910.0,117900.0,0.51118528]
[1755204467353,0.30516893,117910.0,117900.0,0.51118528]
[1755204467812,0.16828893,117910.0,117900.0,0.51118528]
[1755204468038,0.28931591,117910.0,117900.0,0.51058528]
[1755204468252,0.28931591,117910.0,117900.0,0.77478528]
[1755204468477,0.22165405,117910.0,117900.0,0.77478528]
[1755204468699,0.08681405,117910.0,117900.0,1.2436439]
[1755204468917,0.22357405,117910.0,117900.0,1.2436439]
[1755204469641,0.22357405,117910.0,117900.0,1.34149298]
[1755204469833,0.22357405,117910.0,117900.0,1.26109292]
[1755204470051,0.22353405,117910.0,117900.0,1.26109292]
[1755204470288,0.22353405,117910.0,117900.0,1.28656292]
[1755204471183,0.22153405,117910.0,117900.0,1.28656292]
[1755204471392,0.22153405,117910.0,117900.0,1.28856292]
[1755204471640,0.22,117930.0,117920.0,0.50960651]
[1755204471874,0.24185405,117930.0,117920.0,0.51055651]
[1755204472088,0.24189405,117930.0,117920.0,0.51115651]
[1755204472298,0.24189405,117930.0,117920.0,0.51055651]
[1755204472953,0.24189405,117930.0,117920.0,0.51155651]
[1755204473389,0.10681405,117930.0,117920.0,0.51155651]
[1755204473653,0.10681405,117930.0,117920.0,0.98041513]
[1755204473879,0.0031,117960.0,117950.0,0.50956337]
[1755204473880,0.2,117960.0,117950.0,0.50956337]
[1755204474094,0.52236157,117960.0,117950.0,1.04668487]
[1755204474311,0.52546157,117960.0,117950.0,0.51051337]
[1755204474526,0.52743157,117960.0,117950.0,0.50956337]
[1755204475183,0.54317293,117960.0,117950.0,0.50956337]
[1755204475391,0.54417293,117960.0,117950.0,0.50956337]
[1755204475833,0.54417293,117960.0,117950.0,0.51808604]
[1755204476063,0.54417293,117960.0,117950.0,0.58685119]
[1755204476906,0.54817293,117960.0,117950.0,0.58685119]
[1755204477811,0.54817293,117960.0,117950.0,0.51808604]
[1755204478475,0.54817293,117960.0,117950.0,0.50956337]
[1755204478903,0.74817293,117960.0,117950.0,0.50956337]
[1755204481277,0.83076293,117960.0,117950.0,0.50956337]
[1755204481478,0.94031192,117960.0,117950.0,0.50956337]
[1755204481685,1.02513316,117960.0,117950.0,0.50956337]
[1755204481890,0.85558417,117960.0,117950.0,0.50956337]
[1755204482111,0.77076293,117960.0,117950.0,0.50956337]
[1755204482320,0.94031192,117960.0,117950.0,0.50956337]
[1755204482939,0.77076293,117960.0,117950.0,0.50956337]
[1755204483376,0.77863498,117960.0,117950.0,0.50956337]
[1755204483597,0.61864498,117960.0,117950.0,0.51051337]
[1755204483811,0.44346293,117960.0,117950.0,0.97877199]
[1755204484725,0.44346293,117960.0,117950.0,0.51051337]
[1755204484943,0.44346293,117960.0,117950.0,0.90959408]
[1755204485158,0.44246293,117960.0,117950.0,0.90959408]
[1755204485382,0.44246293,117960.0,117950.0,0.91059408]
[1755204485599,0.44246293,117960.0,117950.0,0.51151337]
[1755204486047,0.45540789,117960.0,117950.0,1.17479408]
[1755204486349,0.45540789,117960.0,117950.0,0.80022537]
[1755204486923,0.45140789,117960.0,117950.0,1.19930608]
[1755204487148,0.45140789,117960.0,117950.0,0.77476337]
[1755204487366,0.65140789,117960.0,117950.0,0.77476337]
[1755204488041,0.71140789,117960.0,117950.0,0.77476337]
[1755204489232,0.71732074,117960.0,117950.0,0.77476337]
[1755204490036,0.71140789,117960.0,117950.0,1.17479408]
[1755204490271,0.37449265,117960.0,117950.0,1.17479408]
[1755204490485,0.45205265,117960.0,117950.0,1.17479408]
[1755204490720,0.45114789,117960.0,117950.0,1.17384408]
[1755204492099,0.45114789,117960.0,117950.0,0.90964408]
[1755204492328,0.45706654,117960.0,117950.0,0.90964408]
[1755204492577,0.45506654,117960.0,117950.0,0.91059408]
[1755204492795,0.44681789,117960.0,117950.0,0.91059408]
[1755204493233,0.45273879,117960.0,117950.0,0.91059408]
[1755204493659,0.25265879,117960.0,117950.0,0.91119408]
[1755204493884,0.24673789,117960.0,117950.0,0.91119408]
[1755204494097,0.24673789,117960.0,117950.0,0.91059408]
[1755204494971,0.24673789,117960.0,117950.0,0.93605508]
[1755204495180,0.25272137,117960.0,117950.0,0.93605508]
[1755204498029,0.25272137,117960.0,117950.0,1.20025508]
[1755204498671,0.25773137,117960.0,117950.0,1.20025508]
[1755204498882,0.25272137,117960.0,117950.0,1.20025508]
[1755204500509,0.25272137,117960.0,117950.0,0.93605508]
[1755204500722,0.32539323,117960.0,117950.0,0.53602437]
[1755204500924,0.52539323,117960.0,117950.0,0.51056337]
[1755204501132,0.74043268,117960.0,117950.0,0.61056337]
[1755204501341,0.57088369,117960.0,117950.0,0.61056337]
[1755204501541,0.54807323,117960.0,117950.0,0.61056337]
[1755204501755,0.52539323,117960.0,117950.0,1.00964408]
[1755204501967,0.52487323,117960.0,117950.0,1.00964408]
[1755204502170,0.52492342,117960.0,117950.0,1.00964408]
[1755204502981,0.58492342,117960.0,117950.0,1.00964408]
[1755204503956,0.58492342,117960.0,117950.0,0.61056337]
[1755204504641,0.94947241,117960.0,117950.0,0.441]
[1755204504841,1.37123312,117960.0,117950.0,0.61056337]
[1755204505044,0.97215241,117960.0,117950.0,0.61056337]
[1755204505824,1.00150728,117960.0,117950.0,0.101]
[1755204506022,1.00150728,117960.0,117950.0,0.09082382]
[1755204506023,1.41885799,117960.0,117950.0,0.09082382]
[1755204506253,1.01977728,117960.0,117950.0,0.09082382]
[1755204506488,1.41885799,117960.0,117950.0,0.09082382]
[1755204508025,1.41887493,117960.0,117950.0,0.09082382]
[1755204508453,1.01979422,117960.0,117950.0,0.09082382]
[1755204508652,1.35121307,117960.0,117950.0,0.09082382]
[1755204508864,1.35221307,117960.0,117950.0,0.09082382]
[1755204509075,0.95313236,117960.0,117950.0,0.09082382]
[1755204509275,1.35221307,117960.0,117950.0,0.09082382]
[1755204509487,1.33394307,117960.0,117950.0,0.09082382]
[1755204509903,0.93485739,117960.0,117950.0,0.09082382]
[1755204510095,1.3339381,117960.0,117950.0,0.09082382]
[1755204510299,0.93485739,117960.0,117950.0,0.09082382]
[1755204511991,0.93485739,117960.0,117950.0,0.26038719]
[1755204512412,0.37363353,117960.0,117950.0,0.6604179]
[1755204512628,0.50842353,117960.0,117950.0,0.6604179]
[1755204512840,0.37563353,117960.0,117950.0,0.26133719]
[1755204513028,0.51331353,117960.0,117950.0,0.26038719]
[1755204513491,0.37563353,117960.0,117950.0,0.26038719]
[1755204513698,0.51331353,117960.0,117950.0,0.26038719]
[1755204514546,0.58549429,117960.0,117950.0,0.26038719]
[1755204515869,0.50830353,117960.0,117950.0,0.26133719]
[1755204517551,0.50830353,117960.0,117950.0,0.6604179]
[1755204517758,0.30236046,117960.0,117950.0,0.6604179]
[1755204517983,0.67726945,117960.0,117950.0,0.26038719]
[1755204518179,0.66934927,117960.0,117950.0,0.26038719]
[1755204518401,0.71844485,117960.0,117950.0,0.26038719]
[1755204518608,0.72636135,117960.0,117950.0,0.26038719]
[1755204518812,0.7322985,117960.0,117950.0,0.26038719]
[1755204519158,0.72636135,117960.0,117950.0,0.26038719]
[1755204519603,0.72639509,117960.0,117950.0,0.26038719]
[1755204520262,0.71847859,117960.0,117950.0,0.26038719]
[1755204522441,0.71847859,117960.0,117950.0,0.09082382]
[1755204522863,0.71847859,117960.0,117950.0,0.26038719]
[1755204525541,0.71848466,117960.0,117950.0,0.26038719]
[1755204527676,0.49448009,117960.0,117950.0,0.6604179]
[1755204528418,0.49768009,117960.0,117950.0,0.6604179]
[1755204529177,0.66938908,117960.0,117950.0,0.6604179]
[1755204529398,0.66938908,117960.0,117950.0,0.26038719]
[1755204530034,0.66938908,117960.0,117950.0,0.09082382]
[1755204530255,0.75421032,117960.0,117950.0,0.09082382]
[1755204530471,0.75421032,117960.0,117950.0,0.26038719]
[1755204532683,0.75421032,117960.0,117950.0,0.09082382]
[1755204539459,0.75421032,117960.0,117950.0,0.26038719]
[1755204540519,0.15680009,117960.0,117950.0,0.6604179]
[1755204540742,0.47728157,117960.0,117950.0,0.6604179]
[1755204540984,0.47728157,117960.0,117950.0,1.0010179]
[1755204541611,0.27728157,117960.0,117950.0,1.0010179]
[1755204542057,0.27728157,117960.0,117950.0,0.60133719]
[1755204542303,0.27728157,117960.0,117950.0,1.0004179]
[1755204542736,0.27728157,117960.0,117950.0,0.60133719]
[1755204542937,0.27728157,117960.0,117950.0,1.0004179]
[1755204543231,0.27236157,117960.0,117950.0,1.0004179]
[1755204544141,0.44727056,117960.0,117950.0,0.60038719]
[1755204544357,0.46313308,117960.0,117950.0,0.60038719]
[1755204544606,0.28822409,117960.0,117950.0,0.60133719]
[1755204544828,0.27236157,117960.0,117950.0,1.0004179]
[1755204545047,0.47236157,117960.0,117950.0,1.0004179]
[1755204545207,0.27236157,117960.0,117950.0,1.0010179]
[1755204545409,0.47236157,117960.0,117950.0,1.0010179]
[1755204545617,0.47236157,117960.0,117950.0,1.0004179]
[1755204545816,0.27236157,117960.0,117950.0,1.0004179]
[1755204546034,0.47236157,117960.0,117950.0,1.0010179]
[1755204546604,0.47236157,117960.0,117950.0,1.0004179]
[1755204547544,0.27236157,117960.0,117950.0,1.0004179]
[1755204547747,0.47236157,117960.0,117950.0,0.60133719]
[1755204547956,0.47236157,117960.0,117950.0,1.0004179]
[1755204548703,0.47770157,117960.0,117950.0,1.0004179]
[1755204548914,0.47770157,117960.0,117950.0,0.9994679]
[1755204550055,0.47770157,117960.0,117950.0,0.60038719]
[1755204550236,0.56252281,117960.0,117950.0,0.9994679]
[1755204550905,0.47770157,117960.0,117950.0,0.9994679]
[1755204551116,0.47770157,117960.0,117950.0,1.2636679]
[1755204552003,0.47770157,117960.0,117950.0,1.2646179]
[1755204552206,0.47770157,117960.0,117950.0,1.2636679]
[1755204554912,0.34138157,117960.0,117950.0,1.2636679]
[1755204555119,0.47232157,117960.0,117950.0,1.2646179]
[1755204556328,0.47556157,117960.0,117950.0,1.2646179]
[1755204559747,0.47232157,117960.0,117950.0,1.2646179]
[1755204560765,0.27232157,117960.0,117950.0,1.2646179]
[1755204560965,0.47232157,117960.0,117950.0,1.2646179]
[1755204561713,0.27232157,117960.0,117950.0,1.2646179]
[1755204561949,0.33604157,117960.0,117950.0,1.2646179]
[1755204562152,0.47232157,117960.0,117950.0,1.34501796]
[1755204562333,0.47232157,117960.0,117950.0,1.2646179]
[1755204562986,0.13604157,117960.0,117950.0,1.2900809]
[1755204563152,0.27232157,117960.0,117950.0,1.2906809]
[1755204563524,0.21232157,117960.0,117950.0,1.2906809]
[1755204563932,0.21232157,117960.0,117950.0,1.30812992]
[1755204564336,0.21132157,117960.0,117950.0,1.30812992]
[1755204564553,0.21128157,117960.0,117950.0,1.30912992]
[1755204564770,0.07504157,117960.0,117950.0,1.30912992]
[1755204564989,0.21128157,117960.0,117950.0,1.30912992]
[1755204565808,0.21128157,117960.0,117950.0,1.30852992]
[1755204566469,0.07504157,117960.0,117950.0,1.2910809]
[1755204566661,0.08038157,117960.0,117950.0,1.2910809]
[1755204566870,0.41662157,117960.0,117950.0,1.2910809]
[1755204567075,0.41662157,117960.0,117950.0,0.89200019]
[1755204567360,0.41662157,117960.0,117950.0,1.2910809]
[1755204567771,0.41452157,117960.0,117950.0,1.2910809]
[1755204568680,0.27828157,117960.0,117950.0,1.2910809]
[1755204569093,0.41128157,117960.0,117950.0,1.2910809]
[1755204569730,0.27504157,117960.0,117950.0,1.2910809]
[1755204569933,0.41128157,117960.0,117950.0,1.2910809]
[1755204570421,0.41452157,117960.0,117950.0,1.2910809]
[1755204570633,0.27828157,117960.0,117950.0,1.2910809]
[1755204570970,0.41452157,117960.0,117950.0,1.2910809]
[1755204571649,0.41662157,117960.0,117950.0,1.2910809]
[1755204571891,0.41452157,117960.0,117950.0,1.2910809]
[1755204572096,0.41128157,117960.0,117950.0,1.2910809]
[1755204572947,0.20014752,117960.0,117950.0,1.70821063]
[1755204573171,0.13638752,117960.0,117950.0,1.70821063]
[1755204573608,0.02,117980.0,117970.0,0.18698364]
[1755204573727,0.02049281,117980.0,117970.0,0.91991633]
[1755204573933,0.15669281,117980.0,117970.0,1.26086633]
[1755204574169,0.15669281,117980.0,117970.0,1.26146633]
[1755204574381,0.15669281,117980.0,117970.0,1.28692033]
[1755204576008,0.2195,118010.0,117980.0,0.36592503]
[1755204576227,0.01954926,118010.0,118000.0,0.51044152]
[1755204576443,0.16118926,118010.0,118000.0,0.51044152]
[1755204576618,0.16118926,118010.0,118000.0,1.30920294]
[1755204576857,0.16118926,118010.0,118000.0,1.35210096]
[1755204577584,0.24600331,118010.0,118000.0,1.37401107]
[1755204578005,0.24600331,118010.0,118000.0,1.35310096]
[1755204578836,0.24600331,118010.0,118000.0,1.35250096]
[1755204579040,0.24600331,118010.0,118000.0,1.35350096]
[1755204579242,0.24600331,118010.0,118000.0,1.35410096]
[1755204579443,0.24600331,118010.0,118000.0,1.35350096]
[1755204579918,0.24600331,118010.0,118000.0,1.3621367]
[1755204580748,0.24600331,118010.0,118000.0,0.82817528]
[1755204580966,0.24600331,118010.0,118000.0,1.6263367]
[1755204584185,0.01954926,118010.0,118000.0,1.6263367]
[1755204584402,0.16194926,118010.0,118000.0,1.6269367]
[1755204584614,0.16194926,118010.0,118000.0,1.6263367]
[1755204585789,0.25199331,118010.0,118000.0,1.22630599]
[1755204586269,0.25199331,118010.0,118000.0,1.20885697]
[1755204588274,0.25199331,118010.0,118000.0,1.29968079]
[1755204590057,0.23249331,118010.0,118000.0,1.29968079]
[1755204590758,0.63249331,118010.0,118000.0,0.90060008]
[1755204590999,0.67306593,118010.0,118000.0,0.28776434]
[1755204591210,0.70845719,118010.0,118000.0,0.28776434]
[1755204591430,0.7409485,118010.0,118000.0,0.62776434]
[1755204591617,0.5985485,118010.0,118000.0,1.02684505]
[1755204591792,0.39066593,118010.0,118000.0,1.02684505]
[1755204592106,0.53306593,118010.0,118000.0,1.02684505]
[1755204592285,0.51614042,118010.0,118000.0,1.42492576]
[1755204592479,0.30825593,118010.0,118000.0,1.02484505]
[1755204592687,0.44825593,118010.0,118000.0,1.02484505]
[1755204593577,0.44826754,118010.0,118000.0,1.02484505]
[1755204593787,0.44826783,118010.0,118000.0,1.02484505]
[1755204594450,0.45615722,118010.0,118000.0,1.02484505]
[1755204597147,0.48096722,118010.0,118000.0,0.60031534]
[1755204597977,0.48096722,118010.0,118000.0,0.99939605]
[1755204600449,0.72227375,118010.0,118000.0,0.43082382]
[1755204600664,0.71438436,118010.0,118000.0,0.60031534]
[1755204602163,0.91146009,118010.0,118000.0,0.26031534]
[1755204602335,0.91146009,118010.0,118000.0,0.09082382]
[1755204602573,0.91146009,118010.0,118000.0,0.26031534]
[1755204602775,0.91246009,118010.0,118000.0,0.26031534]
[1755204602984,0.34298293,118010.0,118000.0,0.26031534]
[1755204603189,0.54298293,118010.0,118000.0,0.26031534]
[1755204603557,0.54298293,118010.0,118000.0,0.65939605]
[1755204603791,0.54298293,118010.0,118000.0,0.26031534]
[1755204605930,0.34299203,118010.0,118000.0,0.26031534]
[1755204606136,0.54299203,118010.0,118000.0,0.26031534]
[1755204606751,0.34299203,118010.0,118000.0,0.26031534]
[1755204606952,0.54299203,118010.0,118000.0,0.26031534]
[1755204607151,0.31818203,118010.0,118000.0,0.26031534]
[1755204607418,0.51818203,118010.0,118000.0,0.26031534]
[1755204608275,0.51818203,118010.0,118000.0,0.65939605]
[1755204608778,0.51818224,118010.0,118000.0,0.65939605]
[1755204609536,0.51818224,118010.0,118000.0,0.26031534]
[1755204610376,0.51818224,118010.0,118000.0,0.65939605]
[1755204611314,0.37055224,118010.0,118000.0,1.00034605]
[1755204611518,0.51231224,118010.0,118000.0,1.00034605]
[1755204611694,0.50445646,118010.0,118000.0,1.00034605]
[1755204611938,0.51237303,118010.0,118000.0,1.00034605]
[1755204612121,0.51237303,118010.0,118000.0,1.02579805]
[1755204613194,0.51237303,118010.0,118000.0,1.28999805]
[1755204613421,0.51237801,118010.0,118000.0,1.28999805]
[1755204614439,0.15477988,118010.0,118000.0,1.42487876]
[1755204614618,0.28830331,118010.0,118000.0,1.42547876]
[1755204615678,0.28730331,118010.0,118000.0,1.42547876]
[1755204615884,0.28730331,118010.0,118000.0,1.42487876]
[1755204616091,0.28730331,118010.0,118000.0,1.42587876]
[1755204616730,0.48730331,118010.0,118000.0,0.62771734]
[1755204616933,0.48730331,118010.0,118000.0,1.02679805]
[1755204617137,0.48630331,118010.0,118000.0,1.02679805]
[1755204617496,0.48630331,118010.0,118000.0,1.02779805]
[1755204619129,0.48630331,118010.0,118000.0,1.29199805]
[1755204621147,0.49151331,118010.0,118000.0,0.89291734]
[1755204621333,0.49151331,118010.0,118000.0,1.29104805]
[1755204621905,0.49151331,118010.0,118000.0,1.29199805]
[1755204623850,0.48630331,118010.0,118000.0,1.29199805]
[1755204624053,0.48630331,118010.0,118000.0,1.29104805]
[1755204624269,0.48630331,118010.0,118000.0,1.29199805]
[1755204624784,0.48630331,118010.0,118000.0,1.69107876]
[1755204629226,0.48939331,118010.0,118000.0,1.69107876]
[1755204631840,0.49151331,118010.0,118000.0,1.69107876]
[1755204632799,0.49151331,118010.0,118000.0,0.89291734]
[1755204633010,0.49151331,118010.0,118000.0,1.29104805]
[1755204633435,0.49151331,118010.0,118000.0,0.89196734]
[1755204633646,0.49151331,118010.0,118000.0,1.29104805]
[1755204634517,0.49151331,118010.0,118000.0,1.29004805]
[1755204635691,0.49151331,118010.0,118000.0,1.28904805]
[1755204636880,0.49151331,118010.0,118000.0,1.02484805]
[1755204637085,0.49151331,118010.0,118000.0,0.62576734]
[1755204637318,0.49151331,118010.0,118000.0,1.02484805]
[1755204642728,0.49151331,118010.0,118000.0,1.28904805]
[1755204642948,0.49151331,118010.0,118000.0,1.28999805]
[1755204643724,0.28386331,118010.0,118000.0,1.68907876]
[1755204644114,0.06004926,118010.0,118000.0,1.44292778]
[1755204644328,0.19900926,118010.0,118000.0,1.44292778]
[1755204644534,0.13900926,118010.0,118000.0,1.44292778]
[1755204644875,0.13900926,118010.0,118000.0,1.58188778]
[1755204645697,0.13900926,118010.0,118000.0,1.58388778]
[1755204646111,4.926e-05,118010.0,118000.0,1.58588778]
[1755204646317,1e-08,118010.0,118000.0,1.58588778]
[1755204646523,1e-08,118010.0,118000.0,1.85008778]
[1755204651860,1e-08,118030.0,118010.0,0.52692618]
[1755204652066,1e-08,118030.0,118020.0,1.4686998]
[1755204652277,1e-08,118030.0,118020.0,1.06538253]
[1755204652933,1e-08,118030.0,118020.0,1.09082553]
[1755204656682,0.00502001,118030.0,118020.0,1.09082553]
[1755204656892,0.00502001,118030.0,118020.0,0.95143553]
[1755204657502,0.00502001,118030.0,118020.0,1.21663553]
[1755204657907,0.00502001,118030.0,118020.0,0.81755482]
[1755204658113,0.00502001,118030.0,118020.0,1.21663553]
[1755204658321,0.00502001,118030.0,118020.0,1.21763553]
[1755204658649,0.00502001,118030.0,118020.0,1.21663553]
[1755204659044,0.00502001,118030.0,118020.0,1.21763553]
[1755204659467,0.00502001,118030.0,118020.0,1.21663553]
[1755204660059,0.00502001,118030.0,118020.0,1.21763553]
[1755204660415,0.08983406,118030.0,118020.0,1.20018651]
[1755204660626,0.8210525,118030.0,118020.0,0.8011058]
[1755204660854,0.65160406,118030.0,118020.0,0.5369058]
[1755204661214,0.65160406,118030.0,118020.0,0.93598651]
[1755204661941,0.71160406,118030.0,118020.0,0.93598651]
[1755204662145,0.71160406,118030.0,118020.0,0.93498651]
[1755204662649,0.71260406,118030.0,118020.0,0.93498651]
[1755204662853,0.71260406,118030.0,118020.0,0.93398651]
[1755204663349,0.71260406,118030.0,118020.0,0.42452371]
[1755204663350,0.71360406,118030.0,118020.0,0.42452371]
[1755204663561,0.51360406,118030.0,118020.0,0.59398651]
[1755204663776,0.37572406,118030.0,118020.0,0.93398651]
[1755204663986,0.28951406,118030.0,118020.0,0.93493651]
[1755204664203,0.28449406,118030.0,118020.0,0.93493651]
[1755204664425,0.22951406,118030.0,118020.0,0.93398651]
[1755204666254,0.22951406,118030.0,118020.0,0.93493651]
[1755204666430,0.22746406,118030.0,118020.0,0.93493651]
[1755204669348,0.22746406,118030.0,118020.0,1.19913651]
[1755204669576,1e-08,118030.0,118020.0,1.75362624]
[1755204670208,0.20314,118060.0,118050.0,0.34]
[1755204670412,0.52748182,118060.0,118050.0,0.90850044]
[1755204671030,0.52748182,118060.0,118050.0,0.93394144]
[1755204672871,0.52524182,118060.0,118050.0,0.93394144]
[1755204673079,0.53048182,118060.0,118050.0,0.93394144]
[1755204674441,0.53048182,118060.0,118050.0,0.94259948]
[1755204675389,0.53048182,118060.0,118050.0,1.20679948]
[1755204675835,0.55356182,118060.0,118050.0,1.20679948]
[1755204678649,0.75356182,118060.0,118050.0,1.20679948]
[1755204678830,0.75356182,118060.0,118050.0,0.80771877]
[1755204679276,0.75356182,118060.0,118050.0,0.80023877]
[1755204680284,0.9229672,118060.0,118050.0,0.80023877]
[1755204680862,0.9229672,118060.0,118050.0,1.19931948]
[1755204681087,0.75356182,118060.0,118050.0,1.19931948]
[1755204681333,0.75356182,118060.0,118050.0,0.93511948]
[1755204682419,0.74856182,118060.0,118050.0,0.93511948]
[1755204685709,0.9179672,118060.0,118050.0,0.93511948]
[1755204686113,0.9179672,118060.0,118050.0,0.53603877]
[1755204686651,0.9179672,118060.0,118050.0,0.36661904]
[1755204687567,0.9179672,118060.0,118050.0,0.53603877]
[1755204688120,0.9179672,118060.0,118050.0,0.93511948]
[1755204691125,0.9179672,118060.0,118050.0,1.0259433]
[1755204692158,0.72024182,118060.0,118050.0,1.0268933]
[1755204692591,0.72338182,118060.0,118050.0,1.0268933]
[1755204692806,0.72548182,118060.0,118050.0,1.0268933]
[1755204696847,0.72548182,118060.0,118050.0,0.62781259]
[1755204697031,0.72548182,118060.0,118050.0,1.0268933]
[1755204697185,0.72548182,118060.0,118050.0,1.0259433]
[1755204697949,0.8948872,118060.0,118050.0,0.61820455]
[1755204699557,0.8948872,118060.0,118050.0,1.01728526]
[1755204699731,0.72548182,118060.0,118050.0,1.01728526]
[1755204700882,0.8948872,118060.0,118050.0,1.01728526]
[1755204701214,0.8948872,118060.0,118050.0,0.61820455]
[1755204701415,0.8948872,118060.0,118050.0,1.01728526]
[1755204702141,0.72548182,118060.0,118050.0,1.01728526]
[1755204702933,0.72548182,118060.0,118050.0,0.61820455]
[1755204703376,0.72548182,118060.0,118050.0,1.01728526]
[1755204703581,0.72548182,118060.0,118050.0,0.61820455]
[1755204703784,0.72548182,118060.0,118050.0,1.01728526]
[1755204705402,0.74136444,118060.0,118050.0,1.01728526]
[1755204706141,0.91076982,118060.0,118050.0,1.01728526]
[1755204707606,0.8948872,118060.0,118050.0,1.01728526]
[1755204708220,0.8948872,118060.0,118050.0,0.92728526]
[1755204709784,0.8948872,118060.0,118050.0,0.35878482]
[1755204709975,0.93562,118060.0,118050.0,0.35878482]
[1755204711966,0.99562,118060.0,118050.0,0.35878482]
[1755204712405,0.93562,118060.0,118050.0,0.35878482]
[1755204716843,0.93562,118060.0,118050.0,0.33334382]
[1755204717046,0.99562,118060.0,118050.0,0.33334382]
[1755204718225,0.99562,118060.0,118050.0,0.35878982]
[1755204718864,0.99562,118060.0,118050.0,0.33334382]
[1755204719272,0.99562,118060.0,118050.0,0.35878882]
[1755204720734,1.08044124,118060.0,118050.0,0.02626882]
[1755204720938,1.48745635,118060.0,118050.0,0.02626882]
[1755204721350,1.48745635,118060.0,118050.0,0.00082382]
[1755204721991,1.49340601,118060.0,118050.0,0.00082382]
[1755204722569,1.0943253,118060.0,118050.0,0.00082382]
[1755204722770,1.49340601,118060.0,118050.0,0.00082382]
[1755204723220,1.0913253,118060.0,118050.0,0.00082382]
[1755204723398,1.49040601,118060.0,118050.0,0.00082382]
[1755204723579,1.50440601,118060.0,118050.0,0.00182382]
[1755204723993,1.52440601,118060.0,118050.0,0.00382382]
[1755204724197,1.52437053,118060.0,118050.0,0.00382382]
[1755204725518,1.53261511,118060.0,118050.0,0.00382382]
[1755204725719,1.04871316,118060.0,118050.0,0.00382382]
[1755204725928,1.44779387,118060.0,118050.0,0.00382382]
[1755204729422,1.44778376,118060.0,118050.0,0.00382382]
[1755204730137,1.44183565,118060.0,118050.0,0.00382382]
[1755204730339,1.44777458,118060.0,118050.0,0.00382382]
[1755204730540,1.45990967,118060.0,118050.0,0.00382382]
[1755204731351,1.45397074,118060.0,118050.0,0.00382382]
[1755204732269,1.52828825,118060.0,118050.0,0.00382382]
[1755204734077,1.98238943,118060.0,118050.0,0.00382382]
[1755204734919,1.96238943,118060.0,118050.0,0.00182382]
[1755204735568,1.94838943,118060.0,118050.0,0.00082382]
[1755204735765,1.97236128,118060.0,118050.0,0.00382382]
[1755204735983,1.90618128,118060.0,118050.0,0.00382382]
[1755204741436,1.90618128,118060.0,118050.0,0.00382382]
[1755204741639,1.90617972,118060.0,118050.0,0.00382382]
[1755204743218,1.94371555,118060.0,118050.0,0.00382382]
[1755204743633,1.54463484,118060.0,118050.0,0.00382382]
[1755204743837,1.94371555,118060.0,118050.0,0.00382382]
[1755204744430,1.96195375,118060.0,118050.0,0.00382382]
[1755204744611,1.96195861,118060.0,118050.0,0.00382382]
[1755204746706,0.5694628,118020.0,118010.0,0.0006]
[1755204746922,0.90687045,118020.0,118010.0,0.00155]
[1755204747383,1.31387278,118020.0,118010.0,0.00095]
[1755204747622,1.31387263,118020.0,118010.0,0.00095]
[1755204747863,0.91479192,118020.0,118010.0,0.00095]
[1755204748050,0.51479192,118020.0,118010.0,0.00155]
[1755204748322,0.71479192,118020.0,118010.0,0.00155]
[1755204748538,0.80161316,118020.0,118010.0,0.00955]
[1755204748957,0.80161316,118020.0,118010.0,0.00895]
[1755204749162,0.80261316,118020.0,118010.0,0.00895]
[1755204750450,0.80263202,118020.0,118010.0,0.00895]
[1755204753337,0.66587202,118020.0,118010.0,0.17842716]
[1755204753552,0.71777203,118020.0,118010.0,0.40863071]
[1755204753784,0.71777203,118020.0,118010.0,0.00955]
[1755204754184,0.71777203,118020.0,118010.0,0.00895]
[1755204758405,0.72085203,118020.0,118010.0,0.00895]
[1755204758608,0.80567327,118020.0,118010.0,0.00895]
[1755204759011,1.00567327,118020.0,118010.0,0.00895]
[1755204759255,1.00782327,118020.0,118010.0,0.008]
[1755204760534,1.02213676,118020.0,118010.0,0.008]
[1755204761076,1.01377193,118020.0,118010.0,0.008]
[1755204763249,1.42139341,118020.0,118010.0,0.008]
[1755204763700,1.44454341,118020.0,118010.0,0.008]
[1755204764142,1.44354341,118020.0,118010.0,0.008]
[1755204764561,1.45354341,118020.0,118010.0,0.008]
[1755204765417,1.47099243,118020.0,118010.0,0.008]
[1755204765805,0.56950589,117990.0,117980.0,0.54345521]
[1755204765940,0.69335438,117990.0,117980.0,0.94413518]
[1755204766150,0.63726334,117990.0,117980.0,0.94413518]
[1755204766347,0.23726334,117990.0,117980.0,0.94413518]
[1755204766548,0.23722334,117990.0,117980.0,0.94413518]
[1755204766770,0.43722334,117990.0,117980.0,0.94413518]
[1755204766977,0.43822334,117990.0,117980.0,0.94413518]
[1755204767406,0.44022334,117990.0,117980.0,0.95013518]
[1755204768154,0.44023844,117990.0,117980.0,0.95013518]
[1755204772291,0.44023844,117990.0,117980.0,0.94953518]
[1755204772730,0.44023844,117990.0,117980.0,0.55045447]
[1755204772944,0.44023844,117990.0,117980.0,0.94953518]
[1755204773154,0.50121154,117990.0,117980.0,0.94953518]
[1755204773598,0.50429154,117990.0,117980.0,0.94953518]
[1755204773809,0.44331844,117990.0,117980.0,0.94953518]
[1755204774020,0.44023844,117990.0,117980.0,0.94953518]
[1755204774231,0.44023739,117990.0,117980.0,0.94953518]
[1755204774440,0.44023739,117990.0,117980.0,0.95953518]
[1755204774660,0.44023739,117990.0,117980.0,0.56045447]
[1755204774864,0.44023739,117990.0,117980.0,0.95953518]
[1755204776247,0.42437405,117990.0,117980.0,0.95953518]
[1755204776454,0.44024082,117990.0,117980.0,0.95953518]
[1755204777289,0.42437405,117990.0,117980.0,0.95953518]
[1755204779148,0.48437405,117990.0,117980.0,0.95953518]
[1755204781121,0.48437405,117990.0,117980.0,0.96013518]
[1755204781800,0.48437405,117990.0,117980.0,0.95953518]
[1755204782545,0.48745405,117990.0,117980.0,0.56045447]
[1755204782744,0.48745405,117990.0,117980.0,0.95953518]
[1755204785192,0.48437405,117990.0,117980.0,0.95953518]
[1755204786360,0.48745405,117990.0,117980.0,0.95953518]
[1755204787713,0.48949405,117990.0,117980.0,0.56045447]
[1755204787918,0.55518867,117990.0,117980.0,0.95953518]